bitfinex-derivatives/quotes_BNBF0:USTF0_20260110
["timestamp","ask_amount","ask_price","bid_price","bid_amount"]
[1768062703905,2.72679797,908.95,907.53,1.865]
[1768062704304,2.72679797,908.91,907.53,1.865]
[1768062705811,2.72679797,908.9,907.53,1.865]
[1768062706911,2.72679797,908.88,907.53,1.865]
[1768062708013,2.72679797,908.94,907.53,1.865]
[1768062711014,2.72679797,908.87,907.53,1.865]
[1768062715119,2.72679797,908.97,907.53,1.865]
[1768062715519,2.72679797,908.99,907.53,1.865]
[1768062715914,2.72679797,909.01,907.53,1.865]
[1768062716520,2.72679797,909.0,907.53,1.865]
[1768062717720,2.72679797,908.99,907.53,1.865]
[1768062718619,2.72679797,908.98,907.53,1.865]
[1768062719022,2.72679797,908.99,907.53,1.865]
[1768062719521,2.72679797,909.01,907.53,1.865]
[1768062720620,2.72679797,909.11,907.53,1.865]
[1768062721224,2.72679797,909.07,907.53,1.865]
[1768062721721,2.72679797,909.09,907.53,1.865]
[1768062722324,0.19151606,909.13,907.53,1.865]
[1768062726629,0.19151606,909.13,907.14,0.82429912]
[1768062726826,0.19151606,909.13,907.15,0.69186236]
[1768062727029,0.19151606,909.13,907.16,0.69186236]
[1768062727229,0.19151606,909.13,907.17,0.69186236]
[1768062727429,0.19151606,909.13,907.18,0.69186236]
[1768062727724,0.19151606,909.13,907.19,0.69186236]
[1768062727925,0.19151606,909.13,907.2,0.69186236]
[1768062728128,0.19151606,909.13,907.21,0.69186236]
[1768062728326,0.19151606,909.13,907.22,0.69186236]
[1768062728629,0.19151606,909.13,907.23,0.69186236]
[1768062728829,0.19151606,909.13,907.24,0.69186236]
[1768062729029,0.19151606,909.13,907.25,0.69186236]
[1768062729329,0.19151606,909.13,907.26,0.69186236]
[1768062729529,0.19151606,909.13,907.27,0.69186236]
[1768062729829,0.19151606,909.13,907.28,0.69186236]
[1768062730030,0.19151606,909.13,907.29,0.69186236]
[1768062730328,0.19151606,909.13,907.3,0.69186236]
[1768062730524,0.19151606,909.13,907.28,1.781]
[1768062730525,0.19151606,909.13,907.31,0.69186236]
[1768062730725,0.19151606,909.13,907.32,0.69186236]
[1768062730929,0.19151606,909.13,907.33,0.69186236]
[1768062731129,0.19151606,909.13,907.34,0.69186236]
[1768062731426,0.19151606,909.13,907.35,0.69186236]
[1768062731625,0.19151606,909.13,907.36,0.69186236]
[1768062731829,0.19151606,909.13,907.37,0.69186236]
[1768062732026,0.19151606,909.13,907.38,0.69186236]
[1768062732226,0.19151606,909.13,907.39,0.69186236]
[1768062732428,0.19151606,909.13,907.4,0.69186236]
[1768062732630,0.19151606,909.13,907.41,0.69186236]
[1768062732925,0.19151606,909.13,907.42,0.69186236]
[1768062733129,0.19151606,909.13,907.43,0.69186236]
[1768062733324,0.19151606,909.13,907.44,0.69186236]
[1768062733524,0.19151606,909.13,907.45,0.69186236]
[1768062733726,0.19151606,909.13,907.46,0.69186236]
[1768062733927,0.19151606,909.13,907.47,0.69186236]
[1768062734126,0.19151606,909.13,907.28,1.781]
[1768062734429,0.19151606,909.13,907.29,0.69121977]
[1768062734725,0.19151606,909.13,907.3,0.69121977]
[1768062734928,0.19151606,909.13,907.31,0.69121977]
[1768062735126,0.19151606,909.13,907.32,0.69121977]
[1768062735330,0.19151606,909.13,907.33,0.69121977]
[1768062735530,0.19151606,909.13,907.34,0.69121977]
[1768062735734,0.19151606,909.13,907.35,0.69121977]
[1768062735928,0.19151606,909.13,907.36,0.69121977]
[1768062736133,0.19151606,909.13,907.37,0.69121977]
[1768062736429,0.19151606,909.13,907.38,0.69121977]
[1768062736634,0.19151606,909.13,907.39,0.69121977]
[1768062736836,0.19151606,909.13,907.4,0.69121977]
[1768062737135,0.19151606,909.13,907.41,0.69121977]
[1768062737337,0.19151606,909.13,907.42,0.69121977]
[1768062737636,0.19151606,909.13,907.43,0.69121977]
[1768062737836,0.19151606,909.13,907.44,0.69121977]
[1768062738038,0.19151606,909.13,907.45,0.69121977]
[1768062738235,0.19151606,909.13,907.28,1.781]
[1768062738438,0.19151606,909.13,907.29,0.69098031]
[1768062738737,0.19151606,909.13,907.3,0.69098031]
[1768062739038,0.19151606,909.13,907.31,0.69098031]
[1768062739233,0.19151606,909.13,907.32,0.69098031]
[1768062739437,0.19151606,909.13,907.33,0.69098031]
[1768062739635,0.19151606,909.13,907.28,1.781]
[1768062739636,0.19151606,909.13,907.34,0.69098031]
[1768062739836,0.19151606,909.13,907.35,0.69098031]
[1768062740141,0.19151606,909.13,907.36,0.69098031]
[1768062740339,0.19151606,909.13,907.37,0.69098031]
[1768062740540,0.19151606,909.13,907.38,0.69098031]
[1768062740736,0.19151606,909.13,907.39,0.69098031]
[1768062741037,0.19151606,909.13,907.4,0.69098031]
[1768062741340,0.19151606,909.13,907.41,0.69098031]
[1768062741535,0.19151606,909.13,907.42,0.69098031]
[1768062741738,0.19151606,909.13,907.43,0.69098031]
[1768062741937,0.19151606,909.13,907.44,0.69098031]
[1768062742137,0.19151606,909.13,907.28,1.781]
[1768062742337,0.19151606,909.13,907.29,0.69079032]
[1768062742539,0.19151606,909.13,907.3,0.69079032]
[1768062742736,0.19151606,909.13,907.31,0.69079032]
[1768062742941,0.19151606,909.13,907.32,0.69079032]
[1768062743141,0.19151606,909.13,907.33,0.69079032]
[1768062743440,0.19151606,909.13,907.34,0.69079032]
[1768062743739,0.19151606,909.13,907.35,0.69079032]
[1768062743937,0.19151606,909.13,907.36,0.69079032]
[1768062744136,0.19151606,909.13,907.37,0.69079032]
[1768062744335,0.19151606,909.13,907.38,0.69079032]
[1768062744542,0.19151606,909.13,907.39,0.69079032]
[1768062744837,0.19151606,909.13,907.4,0.69079032]
[1768062745041,0.19151606,909.13,907.41,0.69079032]
[1768062745242,0.19151606,909.13,907.42,0.69079032]
[1768062745537,0.19151606,909.13,907.43,0.69079032]
[1768062745841,0.19151606,909.13,907.28,1.781]
[1768062746037,0.19151606,909.13,907.29,0.6907045]
[1768062746238,0.19151606,909.13,907.3,0.6907045]
[1768062746438,0.19151606,909.13,907.31,0.6907045]
[1768062746638,0.19151606,909.13,907.32,0.6907045]
[1768062746838,0.19151606,909.13,907.33,0.6907045]
[1768062747036,0.19151606,909.13,907.34,0.6907045]
[1768062747242,0.19151606,909.13,907.35,0.6907045]
[1768062747442,0.19151606,909.13,907.36,0.6907045]
[1768062747742,0.19151606,909.13,907.37,0.6907045]
[1768062748040,0.19151606,909.13,907.38,0.6907045]
[1768062748241,0.19151606,909.13,907.39,0.6907045]
[1768062748441,0.19151606,909.13,907.4,0.6907045]
[1768062748641,0.19151606,909.13,907.41,0.6907045]
[1768062748938,0.19151606,909.13,907.42,0.6907045]
[1768062749137,0.19151606,909.13,907.28,1.781]
[1768062749138,0.19151606,909.13,907.43,0.6907045]
[1768062749340,0.19151606,909.13,907.28,1.781]
[1768062749537,0.19151606,909.13,907.29,0.69072347]
[1768062749739,0.19151606,909.13,907.3,0.69072347]
[1768062749937,0.19151606,909.13,907.31,0.69072347]
[1768062750241,0.19151606,909.13,907.32,0.69072347]
[1768062750438,0.19151606,909.13,907.33,0.69072347]
[1768062750638,0.19151606,909.13,907.34,0.69072347]
[1768062750838,0.19151606,909.13,907.35,0.69072347]
[1768062751039,0.19151606,909.13,907.36,0.69072347]
[1768062751241,0.19151606,909.13,907.28,1.781]
[1768062751242,0.19151606,909.13,907.37,0.69072347]
[1768062751441,0.19151606,909.13,907.38,0.69072347]
[1768062751642,0.19151606,909.13,907.39,0.69072347]
[1768062751842,0.19151606,909.13,907.4,0.69072347]
[1768062752041,0.19151606,909.13,907.41,0.69072347]
[1768062752238,0.19151606,909.13,907.42,0.69072347]
[1768062752438,0.19151606,909.13,907.43,0.69072347]
[1768062752643,0.19151606,909.13,907.44,0.69072347]
[1768062752842,0.19151606,909.13,907.45,0.69072347]
[1768062753044,0.19151606,909.13,907.46,0.69072347]
[1768062753238,0.19151606,909.13,907.47,0.69072347]
[1768062753438,0.19151606,909.13,907.48,0.69072347]
[1768062753642,0.19151606,909.13,907.49,0.69072347]
[1768062753840,0.19151606,909.13,907.5,0.69072347]
[1768062754041,0.19151606,909.13,907.51,0.69072347]
[1768062754241,0.19151606,909.13,907.52,0.69072347]
[1768062754442,0.19151606,909.13,907.53,0.69072347]
[1768062754642,0.19151606,909.13,907.54,0.69072347]
[1768062754943,0.19151606,909.13,907.55,0.69072347]
[1768062755143,0.19151606,909.13,907.56,0.69072347]
[1768062755346,0.19151606,909.13,907.57,0.69072347]
[1768062755543,0.19151606,909.13,907.58,0.69072347]
[1768062755742,0.19151606,909.13,907.59,0.69072347]
[1768062755942,0.19151606,909.13,907.3,0.82429912]
[1768062756148,0.19151606,909.13,907.31,1.5172641]
[1768062756346,0.19151606,909.13,907.32,0.69296498]
[1768062756542,0.19151606,909.13,907.33,0.69296498]
[1768062756746,0.19151606,909.13,907.34,0.69296498]
[1768062756942,0.19151606,909.13,907.35,0.69296498]
[1768062757143,0.19151606,909.13,907.36,0.69296498]
[1768062757346,0.19151606,909.13,907.37,0.69296498]
[1768062757640,0.19151606,909.13,907.38,0.69296498]
[1768062757846,0.19151606,909.13,907.39,0.69296498]
[1768062758048,0.19151606,909.13,907.4,0.69296498]
[1768062758248,0.19151606,909.13,907.41,0.69296498]
[1768062758447,0.19151606,909.13,907.42,0.69296498]
[1768062758646,0.19151606,909.13,907.43,0.69296498]
[1768062758946,0.19151606,909.13,907.44,0.69296498]
[1768062759250,0.19151606,909.13,907.45,0.69296498]
[1768062759446,0.19151606,909.13,907.46,0.69296498]
[1768062759651,0.19151606,909.13,907.47,0.69296498]
[1768062759846,0.19151606,909.13,907.48,0.69296498]
[1768062760150,0.19151606,909.13,907.49,0.69296498]
[1768062760346,0.19151606,909.13,907.5,0.69296498]
[1768062760550,0.19151606,909.13,907.51,0.69296498]
[1768062760748,0.19151606,909.13,907.52,0.69296498]
[1768062760946,0.19151606,909.13,907.53,0.69296498]
[1768062761145,0.19151606,909.13,907.54,0.69296498]
[1768062761349,0.19151606,909.13,907.55,0.69296498]
[1768062761547,0.19151606,909.13,907.56,0.69296498]
[1768062761750,0.19151606,909.13,907.57,0.69296498]
[1768062761949,0.19151606,909.13,907.58,0.69296498]
[1768062762150,0.19151606,909.13,907.59,0.69296498]
[1768062762349,0.19151606,909.13,907.6,0.69296498]
[1768062762550,0.19151606,909.13,907.61,0.69296498]
[1768062762748,0.19151606,909.13,907.62,0.69296498]
[1768062762952,0.19151606,909.13,907.63,0.69296498]
[1768062763150,0.19151606,909.13,907.64,0.69296498]
[1768062763448,0.19151606,909.13,907.65,0.69296498]
[1768062763752,0.19151606,909.13,907.66,0.69296498]
[1768062763951,0.19151606,909.13,907.39,0.82429912]
[1768062763952,0.19151606,909.13,907.67,0.69296498]
[1768062764154,0.19151606,909.13,907.68,0.69296498]
[1768062764453,0.19151606,909.13,907.69,0.69296498]
[1768062764653,0.19151606,909.13,907.7,0.69296498]
[1768062764850,0.19151606,909.13,907.71,0.69296498]
[1768062765149,0.19151606,909.13,907.42,0.82429912]
[1768062765354,0.19151606,909.13,907.43,0.69590469]
[1768062765555,0.19151606,909.13,908.01,0.82429912]
[1768062765752,0.19151606,909.13,908.09,0.82429912]
[1768062765950,0.19151606,909.13,908.1,0.69590469]
[1768062766148,0.19151606,909.13,908.11,1.52020381]
[1768062766352,0.19151606,909.13,908.12,0.69590469]
[1768062766552,0.19151606,909.13,908.13,0.69590469]
[1768062766750,0.19151606,909.13,908.14,0.69590469]
[1768062766955,0.19151606,909.13,908.15,0.69590469]
[1768062767155,0.19151606,909.13,908.16,0.69590469]
[1768062767455,0.19151606,909.13,908.17,0.69590469]
[1768062767654,0.19151606,909.13,908.18,0.69590469]
[1768062767854,0.19151606,909.13,908.19,0.69590469]
[1768062768155,0.19151606,909.13,908.2,0.69590469]
[1768062768354,0.19151606,909.13,908.21,0.69590469]
[1768062768551,0.19151606,909.13,908.22,0.69590469]
[1768062768851,0.19151606,909.13,908.23,0.69590469]
[1768062769050,0.19151606,909.13,908.02,1.981]
[1768062769252,0.19151606,909.13,908.03,0.7175008]
[1768062769450,0.19151606,909.13,908.04,0.7175008]
[1768062769654,0.19151606,909.13,908.05,0.7175008]
[1768062769851,0.19151606,909.13,908.06,0.7175008]
[1768062770056,0.19151606,909.13,908.07,0.7175008]
[1768062770356,0.19151606,909.13,908.08,0.7175008]
[1768062770652,0.19151606,909.13,908.09,0.7175008]
[1768062770953,0.19151606,909.13,908.1,0.7175008]
[1768062771256,0.19151606,909.13,908.11,0.7175008]
[1768062771456,0.19151606,909.13,908.12,0.7175008]
[1768062771657,0.19151606,909.13,908.02,1.981]
[1768062771957,0.19151606,909.13,908.03,0.71645449]
[1768062772156,0.19151606,909.13,908.04,0.71645449]
[1768062772456,0.19151606,909.13,908.05,0.71645449]
[1768062772656,0.19151606,909.13,908.06,0.71645449]
[1768062772853,0.19151606,909.13,908.07,0.71645449]
[1768062773053,0.19151606,909.13,908.08,0.71645449]
[1768062773357,0.19151606,909.13,908.02,1.981]
[1768062773657,0.19151606,909.13,908.03,0.71606186]
[1768062773857,0.19151606,909.13,908.04,0.71606186]
[1768062774058,0.19151606,909.13,908.05,0.71606186]
[1768062774254,0.19151606,909.13,908.06,0.71606186]
[1768062774454,0.19151606,909.13,908.07,0.71606186]
[1768062774652,0.19151606,909.13,908.02,1.981]
[1768062774852,0.19151606,909.13,908.03,0.7159048]
[1768062775057,0.19151606,909.13,908.04,0.7159048]
[1768062775259,0.19151606,909.13,908.05,0.7159048]
[1768062775458,0.19151606,909.13,908.06,0.7159048]
[1768062775655,0.19151606,909.13,908.02,1.981]
[1768062775855,0.19151606,909.13,908.03,0.71576416]
[1768062776058,0.19151606,909.13,908.04,0.71576416]
[1768062776257,0.19151606,909.13,908.05,0.71576416]
[1768062776558,0.19151606,909.13,908.06,0.71576416]
[1768062776758,0.19151606,909.13,908.02,1.981]
[1768062776958,0.19151606,909.13,908.03,0.71566844]
[1768062777159,0.19151606,909.13,908.04,0.71566844]
[1768062777355,0.19151606,909.13,908.02,1.981]
[1768062783069,0.19151606,909.13,907.69,0.82429912]
[1768062783378,0.19151606,909.13,907.7,0.71812686]
[1768062783568,0.19151606,909.13,907.71,0.71812686]
[1768062783768,0.19151606,909.13,907.72,0.71812686]
[1768062784064,0.19151606,909.13,907.73,0.71812686]
[1768062784263,0.19151606,909.13,907.74,0.71812686]
[1768062784564,0.19151606,909.13,907.75,0.71812686]
[1768062784767,0.19151606,909.13,907.76,0.71812686]
[1768062784965,0.19151606,909.13,907.77,0.71812686]
[1768062785166,0.19151606,909.13,907.78,0.71812686]
[1768062785366,0.19151606,909.13,907.79,0.71812686]
[1768062785568,0.19151606,909.13,907.8,0.71812686]
[1768062785767,0.19151606,909.13,907.81,0.71812686]
[1768062786070,0.19151606,909.13,907.82,0.71812686]
[1768062786267,0.19151606,909.13,907.83,0.71812686]
[1768062786568,0.19151606,909.13,907.84,0.71812686]
[1768062786771,0.19151606,909.13,907.85,0.71812686]
[1768062787071,0.19151606,909.13,907.86,0.71812686]
[1768062787266,0.19151606,909.13,907.87,0.71812686]
[1768062787467,0.19151606,909.13,907.88,0.71812686]
[1768062787777,0.19151606,909.13,907.89,0.71812686]
[1768062787982,0.19151606,909.13,907.9,0.71812686]
[1768062788275,0.19151606,909.13,907.91,0.71812686]
[1768062788469,0.19151606,909.13,907.92,0.71812686]
[1768062788770,0.19151606,909.13,907.93,0.71812686]
[1768062788974,0.19151606,909.13,907.94,0.71812686]
[1768062789181,0.19151606,909.13,907.95,0.71812686]
[1768062789372,0.19151606,909.13,907.96,0.71812686]
[1768062789679,0.19151606,909.13,907.97,0.71812686]
[1768062789969,0.19151606,909.13,907.98,0.71812686]
[1768062790175,0.19151606,909.13,907.99,0.71812686]
[1768062790376,0.19151606,909.13,908.0,0.71831878]
[1768062790672,0.19151606,909.13,907.84,1.721]
[1768062790871,0.19151606,909.13,907.85,0.71831878]
[1768062791075,0.19151606,909.13,907.86,0.71831878]
[1768062791271,0.19151606,909.13,907.87,0.71831878]
[1768062791476,0.19151606,909.13,907.88,0.71831878]
[1768062791675,0.19151606,909.13,907.89,0.71831878]
[1768062791977,0.19151606,909.13,907.9,0.71831878]
[1768062792176,0.19151606,909.13,907.91,0.71831878]
[1768062792374,0.19151606,909.13,907.92,0.71831878]
[1768062792574,0.19151606,909.13,907.93,0.71831878]
[1768062792773,0.19151606,909.13,907.94,0.71831878]
[1768062792976,0.19151606,909.13,907.95,0.71831878]
[1768062793174,0.19151606,909.13,907.96,0.71831878]
[1768062793474,0.19151606,909.13,907.97,0.71831878]
[1768062793774,0.19151606,909.13,907.98,0.71831878]
[1768062793978,0.19151606,909.13,907.99,0.71831878]
[1768062794174,0.19151606,909.13,908.0,0.71831878]
[1768062794380,0.19151606,909.13,908.01,0.71831878]
[1768062794675,0.19151606,909.13,908.02,0.71831878]
[1768062794878,0.19151606,909.13,908.03,0.71831878]
[1768062795078,0.19151606,909.13,908.04,0.71831878]
[1768062795378,0.19151606,909.13,908.05,0.71831878]
[1768062795577,0.19151606,909.13,908.06,0.71831878]
[1768062795775,0.19151606,909.13,908.07,0.71831878]
[1768062795976,0.19151606,909.13,907.84,1.721]
[1768062796176,0.19151606,909.13,907.85,0.71872024]
[1768062796478,0.19151606,909.13,907.86,0.71872024]
[1768062796676,0.19151606,909.13,907.87,0.71872024]
[1768062796876,0.19151606,909.13,907.88,0.71872024]
[1768062797078,0.19151606,909.13,907.89,0.71872024]
[1768062797279,0.19151606,909.13,907.9,0.71872024]
[1768062797480,0.19151606,909.13,907.91,0.71872024]
[1768062797680,0.19151606,909.13,907.92,0.71872024]
[1768062797981,0.19151606,909.13,907.93,0.71872024]
[1768062798275,0.19151606,909.13,907.94,0.71872024]
[1768062798480,0.19151606,909.13,907.95,0.71872024]
[1768062798677,0.19151606,909.13,907.96,0.71872024]
[1768062798977,0.19151606,909.13,907.97,0.71872024]
[1768062799180,0.19151606,909.13,907.98,0.71872024]
[1768062799477,0.19151606,909.13,907.99,0.71872024]
[1768062799680,0.19151606,909.13,908.0,0.71872024]
[1768062799977,0.19151606,909.13,908.01,0.71872024]
[1768062800177,0.19151606,909.13,908.02,0.71872024]
[1768062800378,0.19151606,909.13,908.03,0.71872024]
[1768062800577,0.19151606,909.13,908.04,0.71872024]
[1768062800782,0.19151606,909.13,908.05,0.71872024]
[1768062800978,0.19151606,909.13,908.06,0.71872024]
[1768062801183,0.19151606,909.13,908.07,0.71872024]
[1768062801379,0.19151606,909.13,908.02,1.915]
[1768062801583,0.19151606,909.13,908.03,0.71954753]
[1768062801882,0.19151606,909.13,908.04,0.71954753]
[1768062802082,0.19151606,909.13,908.05,0.71954753]
[1768062802283,0.19151606,909.13,908.06,0.71954753]
[1768062802483,0.19151606,909.13,908.07,0.71954753]
[1768062802682,0.19151606,909.13,908.08,0.71954753]
[1768062802879,0.19151606,909.13,908.02,1.915]
[1768062803088,0.19151606,909.13,908.03,0.71973435]
[1768062803285,0.19151606,909.13,908.04,0.71973435]
[1768062803482,0.19151606,909.13,908.05,0.71973435]
[1768062803685,0.19151606,909.13,908.06,0.71973435]
[1768062803883,0.19151606,909.13,908.07,0.71973435]
[1768062804087,0.19151606,909.13,908.08,0.71973435]
[1768062804386,0.19151606,909.13,908.09,0.71973435]
[1768062804587,0.19151606,909.13,908.1,0.71973435]
[1768062804787,0.19151606,909.13,908.02,1.915]
[1768062804989,0.19151606,909.13,908.03,0.72016544]
[1768062805188,0.19151606,909.13,908.04,0.72016544]
[1768062805387,0.19151606,909.13,908.05,0.72016544]
[1768062805584,0.19151606,909.13,908.06,0.72016544]
[1768062805787,0.19151606,909.13,908.07,0.72016544]
[1768062805983,0.19151606,909.13,908.08,0.72016544]
[1768062806188,0.19151606,909.13,908.09,0.72016544]
[1768062806387,0.19151606,909.13,908.1,0.72016544]
[1768062806583,0.19151606,909.13,908.11,0.72016544]
[1768062806790,0.19151606,909.13,908.12,0.72016544]
[1768062807090,0.19151606,909.13,908.02,1.915]
[1768062807288,0.19151606,909.13,908.03,0.72069629]
[1768062807491,0.19151606,909.13,908.04,0.72069629]
[1768062807787,0.19151606,909.13,908.05,0.72069629]
[1768062807990,0.19151606,909.13,908.06,0.72069629]
[1768062808190,0.19151606,909.13,908.07,0.72069629]
[1768062808490,0.19151606,909.13,908.08,0.72069629]
[1768062808690,0.19151606,909.13,908.09,0.72069629]
[1768062808890,0.19151606,909.13,908.1,0.72069629]
[1768062809089,0.19151606,909.13,908.11,0.72069629]
[1768062809291,0.19151606,909.13,908.02,1.915]
[1768062809292,0.19151606,909.13,908.12,0.72069629]
[1768062809491,0.19151606,909.13,908.13,0.72069629]
[1768062809691,0.19151606,909.13,908.14,0.72069629]
[1768062809890,0.19151606,909.13,908.15,0.72069629]
[1768062810089,0.19151606,909.13,908.16,0.72069629]
[1768062810301,0.19151606,909.13,908.17,0.72310808]
[1768062810499,0.19151606,909.13,908.18,0.72310808]
[1768062810693,0.19151606,909.13,908.19,0.72310808]
[1768062810894,0.19151606,909.13,908.02,1.915]
[1768062811197,0.19151606,909.13,908.03,0.72312353]
[1768062811395,2.72679797,909.8,908.04,0.72312353]
[1768062811591,2.72679797,909.8,908.05,0.72312353]
[1768062811794,0.19151079,908.86,908.06,0.72312353]
[1768062812095,2.93890071,909.05,908.07,0.72312353]
[1768062812296,0.19151026,908.69,908.08,0.72312353]
[1768062812596,2.93890071,909.05,908.09,0.72312353]
[1768062812900,0.19154874,908.69,908.1,0.72312353]
[1768062813096,2.93890071,909.05,908.11,0.72312353]
[1768062813292,0.19154768,908.69,908.12,0.72312353]
[1768062813592,2.93890071,909.05,908.13,0.72312353]
[1768062813795,0.19154663,908.69,908.14,0.72312353]
[1768062813993,2.93890071,909.05,908.15,0.72312353]
[1768062814195,2.93890071,909.05,908.16,0.72312353]
[1768062814396,2.93890071,909.05,908.17,0.72312353]
[1768062814397,0.19154557,908.69,908.17,0.72312353]
[1768062814596,2.93890071,909.05,908.18,0.72312353]
[1768062814796,0.19154399,908.69,908.19,0.72312353]
[1768062815091,2.93890071,909.05,908.2,0.72312353]
[1768062815293,2.93890071,909.05,908.21,0.72312353]
[1768062815596,2.93890071,909.05,908.22,0.72312353]
[1768062815793,2.93890071,909.05,908.02,1.915]
[1768062815997,0.19154083,908.85,908.03,0.72398189]
[1768062816198,0.19154083,908.85,908.04,0.72398189]
[1768062816498,0.19154083,908.85,908.05,0.72398189]
[1768062816793,0.19154083,908.85,908.06,0.72398189]
[1768062816993,0.19154083,908.85,908.07,0.72398189]
[1768062817194,2.93890071,909.05,908.19,0.82429912]
[1768062817397,2.93890071,909.05,908.24,0.82429912]
[1768062817598,2.93890071,909.05,908.25,0.72398189]
[1768062817893,2.93890071,909.05,908.26,0.72398189]
[1768062818097,2.93890071,909.05,908.27,0.72398189]
[1768062818295,2.93890071,909.05,908.28,0.72398189]
[1768062818497,2.93890071,909.05,908.29,0.72398189]
[1768062818697,2.93890071,909.05,908.3,0.72398189]
[1768062818894,2.93890071,909.05,908.31,0.72398189]
[1768062819098,2.93890071,909.05,908.32,0.72398189]
[1768062819294,2.93890071,909.05,908.22,0.82429912]
[1768062819295,2.93890071,909.05,908.33,0.72398189]
[1768062819496,2.93890071,909.05,908.34,0.72398189]
[1768062819694,2.93890071,909.05,908.35,0.72398189]
[1768062819895,2.93890071,909.05,908.36,0.72398189]
[1768062820104,2.93890071,909.05,908.37,0.72398189]
[1768062820401,2.93890071,909.05,908.38,0.72398189]
[1768062820596,2.93890071,909.05,908.39,0.72398189]
[1768062820804,2.93890071,909.05,908.4,0.72398189]
[1768062821001,2.93890071,909.05,908.41,0.72398189]
[1768062821299,2.93890071,909.05,908.42,0.72398189]
[1768062821599,2.93890071,909.05,908.43,0.72398189]
[1768062821799,2.93890071,909.05,908.44,0.72398189]
[1768062821998,2.93890071,909.05,908.45,0.72398189]
[1768062822202,2.93890071,909.05,908.23,0.82429912]
[1768062822203,2.93890071,909.05,908.46,0.72398189]
[1768062822399,2.93890071,909.05,908.47,0.72398189]
[1768062822609,2.93890071,909.05,908.48,0.72398189]
[1768062822800,2.93890071,909.05,908.49,0.72398189]
[1768062823003,2.93890071,909.05,908.5,0.72398189]
[1768062823197,2.93890071,909.05,908.22,0.82429912]
[1768062823401,2.93890071,909.05,908.23,0.72151766]
[1768062823598,2.93890071,909.05,908.24,0.72151766]
[1768062823902,2.93890071,909.05,908.25,0.72151766]
[1768062824199,2.93890071,909.05,908.26,0.72151766]
[1768062824403,2.93890071,909.05,908.27,0.72151766]
[1768062824599,2.93890071,909.05,908.28,0.72151766]
[1768062824804,2.93890071,909.05,908.29,0.72151766]
[1768062825099,2.93890071,909.05,908.3,0.72151766]
[1768062825303,2.93890071,909.05,908.31,0.72151766]
[1768062825504,2.93890071,909.05,908.32,0.72151766]
[1768062825700,2.93890071,909.05,908.33,0.72151766]
[1768062825900,2.93890071,909.05,908.34,0.72151766]
[1768062826107,2.93890071,909.05,908.35,0.72151766]
[1768062826303,2.93890071,909.05,908.36,0.72151766]
[1768062826504,2.93890071,909.05,908.37,0.72099642]
[1768062826703,2.93890071,909.05,908.38,0.72099642]
[1768062826906,2.93890071,909.05,908.39,0.72099642]
[1768062827107,2.93890071,909.05,908.4,0.72099642]
[1768062827304,2.93890071,909.05,908.41,0.72099642]
[1768062827508,2.93890071,909.05,908.42,0.72099642]
[1768062827703,2.93890071,909.05,908.43,0.72099642]
[1768062827905,2.93890071,909.05,908.44,0.72099642]
[1768062828108,2.93890071,909.05,908.45,0.72099642]
[1768062828409,2.93890071,909.05,908.46,0.72099642]
[1768062828608,2.93890071,909.05,908.47,0.72099642]
[1768062828808,2.93890071,909.05,908.18,0.82237821]
[1768062829010,2.93890071,909.05,908.19,0.72088909]
[1768062829208,2.93890071,909.05,908.2,0.72088909]
[1768062829409,2.93890071,909.05,908.21,0.72088909]
[1768062829606,2.93890071,909.05,908.22,0.72088909]
[1768062829908,2.93890071,909.05,908.23,0.72088909]
[1768062830113,2.93890071,909.05,908.24,0.72088909]
[1768062830310,2.93890071,909.05,908.25,0.72088909]
[1768062830604,2.93890071,909.05,908.26,0.72088909]
[1768062830905,2.93890071,909.05,908.27,0.72088909]
[1768062831109,2.93890071,909.05,908.28,0.72088909]
[1768062831311,2.93890071,909.05,908.29,0.72088909]
[1768062831510,2.93890071,909.05,908.3,0.72088909]
[1768062831710,2.93890071,909.05,908.31,0.72088909]
[1768062831907,2.93890071,909.05,908.32,0.72088909]
[1768062832112,2.93890071,909.05,908.33,0.72088909]
[1768062832310,2.93890071,909.05,908.34,0.72088909]
[1768062832508,2.93890071,909.05,908.35,0.72088909]
[1768062832708,2.93890071,909.05,908.36,0.72088909]
[1768062832912,2.93890071,909.05,908.37,0.72088909]
[1768062833109,2.93890071,909.05,908.38,0.72088909]
[1768062833311,2.93890071,909.05,908.39,0.72088909]
[1768062833508,2.93890071,909.05,908.4,0.72088909]
[1768062833709,2.93890071,909.05,908.41,0.72088909]
[1768062834015,2.93890071,909.05,908.42,0.72088909]
[1768062834211,2.93890071,909.05,908.43,0.72088909]
[1768062834410,2.93890071,909.05,908.44,0.72088909]
[1768062834610,2.93890071,909.05,908.45,0.72088909]
[1768062834813,2.93890071,909.05,908.46,0.72088909]
[1768062835012,2.93890071,909.05,908.47,0.72088909]
[1768062835314,2.93890071,909.05,908.48,0.72088909]
[1768062835514,2.93890071,909.05,908.49,0.72088909]
[1768062835810,2.93890071,909.05,908.2,0.82237821]
[1768062836014,2.93890071,909.05,908.21,0.72023442]
[1768062836210,2.93890071,909.05,908.22,0.72023442]
[1768062836516,2.93890071,909.05,908.23,0.72023442]